bitfinex/quotes_ETHUSD_20230830
["timestamp","ask_amount","ask_price","bid_price","bid_amount"]
[1693438125118,16.44050665,1707.0,1706.9,2.9]
[1693438127389,22.29873665,1707.0,1706.9,2.9]
[1693438131025,22.29873665,1707.0,1706.9,3.67091695]
[1693438133540,14.58994065,1707.0,1706.9,3.67091695]
[1693438133838,5.85823,1707.0,1706.9,3.67091695]
[1693438134843,11.71646,1707.0,1706.9,3.67091695]
[1693438140257,5.85823,1707.0,1706.9,3.67091695]
[1693438165058,5.85823,1707.0,1706.9,4.68931073]
[1693438185875,5.85823,1707.0,1706.9,4.68931192]
[1693438189955,8.3549928,1707.1,1706.9,5.21967773]
[1693438189956,5.8579,1707.1,1706.9,5.21967773]
[1693438190163,11.71598,1707.1,1707.0,1.01839497]
[1693438190840,11.71598,1707.1,1707.0,1.77291845]
[1693438192782,5.8579,1707.1,1707.0,1.77291845]
[1693438201829,11.71596,1707.1,1707.0,0.75452348]
[1693438205119,5.8579,1707.1,1707.0,0.75452348]
[1693438205321,5.8579,1707.1,1707.0,1.11997583]
[1693438215240,5.8579,1707.1,1707.0,0.75452348]
[1693438216234,5.8579,1707.1,1707.0,1.77287]
[1693438227855,11.71576,1707.1,1707.0,1.77287]
[1693438228953,5.85788,1707.1,1707.0,1.77287]
[1693438234938,6.339127,1707.4,1707.0,14.10367622]
[1693438235267,11.17000765,1707.4,1707.1,8.28655414]
[1693438235447,11.17000765,1707.4,1707.1,6.60003645]
[1693438236271,17.02703765,1707.4,1707.1,6.60003645]
[1693438239409,11.17000765,1707.4,1707.1,6.60003645]
[1693438241581,8.296527,1707.4,1707.1,6.60003645]
[1693438248020,8.296527,1707.4,1707.1,12.45791645]
[1693438248222,8.296527,1707.4,1707.1,14.54958472]
[1693438248406,2.439607,1707.4,1707.1,14.54958472]
[1693438251322,2.439607,1707.4,1707.3,1.92321482]
[1693438251323,0.0112048,1707.4,1707.3,1.92321482]
[1693438251521,0.0112048,1707.4,1707.3,23.73689238]
[1693438251829,0.0112048,1707.4,1707.3,22.27082234]
[1693438251995,0.0112048,1707.4,1707.3,18.96405638]
[1693438253395,0.0112048,1707.4,1707.3,24.82125638]
[1693438255991,1e-08,1707.4,1707.3,25.74071281]
[1693438257140,1e-08,1707.4,1707.3,25.12802234]
[1693438257945,2.0595,1707.7,1707.4,0.00199999]
[1693438258237,2.0595,1707.7,1707.5,5.85651]
[1693438260057,2.0595,1707.7,1707.6,1.75429001]
[1693438261264,2.0595,1707.7,1707.6,7.61046001]
[1693438266136,5.85553,1707.8,1707.6,1.75429001]
[1693438266343,9.73230065,1707.7,1707.6,0.73629647]
[1693438266512,10.31785365,1707.7,1707.6,1.75433435]
[1693438272032,9.31485365,1707.7,1707.6,1.75433435]
[1693438272430,15.17067365,1707.7,1707.6,1.75433435]
[1693438273234,9.31485365,1707.7,1707.6,1.75433435]
[1693438273436,15.17067365,1707.7,1707.6,1.75433435]
[1693438278326,15.63175387,1707.7,1707.6,1.75433435]
[1693438288992,15.63175387,1707.7,1707.6,0.73629647]
[1693438292394,15.04620087,1707.7,1707.6,0.73629647]
[1693438294477,14.58512065,1707.7,1707.6,0.73629647]
[1693438296499,15.58812065,1707.7,1707.6,0.73629647]
[1693438309689,16.05405445,1707.7,1707.6,0.73629647]
[1693438319624,5.85582,1707.7,1707.6,0.73629647]
[1693438319824,5.85582,1707.7,1707.6,2.1179055]
[1693438320520,5.85582,1707.7,1707.6,1.75427585]
[1693438327259,26.3575,1707.8,1707.6,1.75427585]
[1693438327590,5.85582,1707.7,1707.6,0.73629647]
[1693438327733,5.85582,1707.7,1707.6,1.7542732]
[1693438338069,5.85582,1707.7,1707.6,0.73629647]
[1693438338070,14.58512065,1707.7,1707.6,0.73629647]
[1693438338299,19.68237772,1707.7,1707.6,0.73629647]
[1693438348250,19.68237772,1707.7,1707.4,0.61407822]
[1693438348251,22.68237772,1707.7,1707.4,0.61407822]
[1693438348542,22.68237772,1707.7,1707.1,2.763352]
[1693438348543,17.57076,1707.4,1707.1,2.763352]
[1693438348697,12.71808,1707.2,1707.1,1.84223467]
[1693438348899,15.59156065,1707.2,1707.1,1.01827166]
[1693438349316,17.73644272,1707.2,1706.9,1.53525544]
[1693438349602,8.73165065,1707.1,1706.9,1.63239913]
[1693438349931,14.58982065,1707.1,1706.9,1.63239913]
[1693438350094,14.58982065,1707.1,1707.0,0.62892919]
[1693438350298,14.58982065,1707.1,1707.0,1.64719021]
[1693438351222,14.58982065,1707.1,1707.0,1.64721717]
[1693438351536,14.58982065,1707.1,1707.0,0.62892919]
[1693438352111,14.58982065,1707.1,1706.8,6.47255911]
[1693438352311,14.58982065,1707.1,1706.9,1.01829102]
[1693438353602,8.73165065,1707.1,1706.9,1.01829102]
[1693438355440,8.73165065,1707.1,1706.8,11.71748]
[1693438355603,8.73165065,1707.1,1706.8,13.31293278]
[1693438356333,8.73165065,1707.1,1706.9,1.01828886]
[1693438358547,8.73165065,1707.1,1706.9,3.91828886]
[1693438358748,8.73165065,1707.1,1706.9,2.9]
[1693438359938,35.08915065,1707.1,1706.9,2.9]
[1693438362362,35.08915065,1707.1,1707.0,1.01828792]
[1693438364762,35.08915065,1707.1,1707.0,1.64721711]
[1693438369557,34.47818264,1707.1,1707.0,1.64721711]
[1693438369727,34.47818264,1707.1,1707.0,2.26103622]
[1693438370127,34.47818264,1707.1,1707.0,1.64721711]
[1693438370670,34.47818264,1707.1,1707.0,2.26103622]
[1693438372859,34.47818264,1707.1,1707.0,1.64721076]
[1693438373032,34.47818264,1707.1,1707.0,2.2595718]
[1693438373218,32.21567,1707.1,1707.0,2.2595718]
[1693438376515,32.21567,1707.1,1707.0,3.17811336]
[1693438378354,32.21567,1707.1,1707.0,2.56575232]
[1693438381720,32.21567,1707.1,1707.0,5.46575232]
[1693438384556,44.73492475,1707.1,1707.0,5.46575232]
[1693438385234,44.73492475,1707.1,1707.0,6.07887488]
[1693438385430,38.87675475,1707.1,1707.0,5.16033332]
[1693438386437,38.87675475,1707.1,1707.0,6.07887488]
[1693438388251,36.09186065,1707.1,1707.0,6.07887488]
[1693438392391,36.09186065,1707.1,1707.0,5.46575232]
[1693438392589,36.09186065,1707.1,1707.0,6.07986565]
[1693438392893,36.09186065,1707.1,1707.0,5.46575232]
[1693438393266,36.09186065,1707.1,1707.0,6.07987259]
[1693438393466,36.09186065,1707.1,1707.0,5.46575232]
[1693438395408,41.08163672,1707.1,1707.0,5.46575232]
[1693438396371,36.09186065,1707.1,1707.0,6.08053218]
[1693438397290,36.09186065,1707.1,1707.0,5.16199062]
[1693438399385,36.09186065,1707.1,1707.0,4.54721076]
[1693438415842,26.3575,1707.1,1707.0,5.16199062]
[1693438417328,32.21538,1707.1,1707.0,5.16199062]
[1693438422853,32.69623098,1707.1,1707.0,5.16199062]
[1693438425853,32.69623098,1707.1,1707.0,5.16164291]
[1693438432258,32.69623098,1707.1,1707.0,4.54718096]
[1693438433070,32.21538,1707.1,1707.0,4.54721638]
[1693438437466,45.95747265,1707.1,1707.0,4.54721638]
[1693438440802,45.95747265,1707.1,1707.0,3.52892919]
[1693438446946,52.29535265,1707.1,1707.0,3.52892919]
[1693438447152,52.7668572,1707.1,1707.0,3.52892919]
[1693438447463,52.7668572,1707.1,1707.0,2.9]
[1693438448063,52.7668572,1707.1,1707.0,3.51094509]
[1693438448891,52.7668572,1707.1,1707.0,2.9]
[1693438449263,52.7668572,1707.1,1707.0,3.49249918]
[1693438449872,52.7668572,1707.1,1707.0,2.9]
[1693438451672,52.7668572,1707.1,1707.0,3.49249918]
[1693438457341,55.7668572,1707.1,1707.0,3.49249918]
[1693438458622,55.7668572,1707.1,1707.0,2.9]
[1693438459155,55.94033717,1707.1,1707.0,2.9]
[1693438460517,55.7668572,1707.1,1707.0,3.49249918]
[1693438488537,50.7561252,1707.1,1707.0,3.49249918]
[1693438501674,44.8982452,1707.1,1707.0,3.49249918]
[1693438512683,38.5603652,1707.1,1707.0,3.49249918]
[1693438512996,44.4182452,1707.1,1707.0,3.49249918]
[1693438521897,45.4212452,1707.1,1707.0,3.49249918]
[1693438522194,50.74832572,1707.1,1707.0,3.49249918]
[1693438530497,56.60620572,1707.1,1707.0,3.49249918]
[1693438530727,57.08620572,1707.1,1707.0,3.49249918]
[1693438531385,60.08620572,1707.1,1707.0,3.49249918]
[1693438531590,60.67334833,1707.1,1707.0,3.49249918]
[1693438531893,60.67334833,1707.1,1707.0,2.48607755]
[1693438536696,60.08620572,1707.1,1707.0,2.48607755]
[1693438538751,60.08620572,1707.1,1706.6,2.1366]
[1693438538948,1.003,1706.9,1706.6,2.1366]
[1693438539150,1.003,1706.9,1706.7,0.6643351]
[1693438539151,14.59130065,1706.8,1706.7,0.6643351]
[1693438539448,15.07130065,1706.8,1706.6,2.1366]
[1693438539648,14.59130065,1706.8,1706.6,2.1366]
[1693438539852,14.59130065,1706.8,1706.7,0.00326145]
[1693438540152,15.07130065,1706.8,1706.7,0.00326145]
[1693438540941,15.07130065,1706.8,1706.6,2.1366]
[1693438541747,15.07130065,1706.8,1706.7,0.00326145]
[1693438542842,15.07130065,1706.8,1706.6,2.1366]
[1693438543830,15.07130065,1706.8,1706.7,0.00326145]
[1693438544651,15.07130065,1706.8,1706.7,0.6673438]
[1693438544823,15.07130065,1706.8,1706.7,0.66408235]
[1693438545225,17.26458872,1706.8,1706.7,0.66408235]
[1693438545428,17.26458872,1706.8,1706.4,9.65173]
[1693438545634,0.48,1706.7,1706.4,8.00163]
[1693438545955,2.87348065,1706.6,1706.5,0.00327589]
[1693438553177,8.73308065,1706.6,1706.5,0.00327589]
[1693438559766,8.73308065,1706.6,1706.5,0.6681866]
[1693438564574,9.20376825,1706.6,1706.5,0.6681866]
[1693438566880,8.73308065,1706.6,1706.5,0.6681866]
[1693438567175,8.73308065,1706.6,1706.5,1.68673305]
[1693438573562,2.87348065,1706.6,1706.5,1.68673305]
[1693438573762,8.73308065,1706.6,1706.5,1.68673305]
[1693438575391,8.73308065,1706.6,1706.5,2.30122553]
[1693438600035,9.6187356,1706.6,1706.5,2.30122553]
[1693438600241,10.079729,1706.6,1706.5,2.30122553]
[1693438604629,8.73308065,1706.6,1706.5,2.30122553]
[1693438620700,8.73308065,1706.6,1706.5,4.90122553]
[1693438621598,35.09058065,1706.6,1706.5,4.90122553]
[1693438623495,35.09058065,1706.6,1706.5,4.28673305]
[1693438641327,36.45499611,1706.6,1706.5,4.28673305]
[1693438644126,35.09058065,1706.6,1706.5,4.28673305]
[1693438664124,35.09058065,1706.6,1706.5,1.68673305]
[1693438672757,35.09058065,1706.6,1706.5,4.28673305]
[1693438679673,26.3575,1706.6,1706.5,4.28673305]
[1693438680075,32.2171,1706.6,1706.5,4.28673305]
[1693438703120,33.58204713,1706.6,1706.5,4.28673305]
[1693438711495,32.2171,1706.6,1706.5,4.28673305]
[1693438713111,32.2171,1706.6,1706.5,3.2681866]
[1693438713308,32.2171,1706.6,1706.5,4.28676508]
[1693438725841,33.56128716,1706.6,1706.5,4.28348919]
[1693438726046,33.56128716,1706.6,1706.5,4.28676508]
[1693438727345,32.69627313,1706.6,1706.5,4.28676508]
[1693438727649,32.2171,1706.6,1706.5,4.28676508]
[1693438736455,26.3575,1706.6,1706.5,4.28676508]
[1693438739468,26.3575,1706.6,1706.5,10.14670508]
[1693438739769,26.3575,1706.6,1706.5,9.48179437]
[1693438740146,26.3575,1706.6,1706.5,10.14671746]
[1693438742338,26.3575,1706.6,1706.5,18.46890596]
[1693438742543,26.3575,1706.6,1706.5,24.94299351]
[1693438742750,26.3575,1706.6,1706.5,25.24989801]
[1693438743368,26.3575,1706.6,1706.5,25.86378829]
[1693438744185,26.3575,1706.6,1706.5,25.24989801]
[1693438744486,26.3575,1706.6,1706.5,25.86377781]
[1693438745497,26.3575,1706.6,1706.5,24.94263299]
[1693438780619,26.3575,1706.6,1706.5,16.62044449]
[1693438781518,26.3575,1706.6,1706.5,10.14662469]
[1693438800404,26.3575,1706.6,1706.5,9.12813898]
[1693438800606,26.3575,1706.6,1706.5,10.14668042]
[1693438804314,26.81986508,1706.6,1706.5,10.14668042]
[1693438805746,26.3575,1706.6,1706.5,10.14668042]
[1693438806387,26.3575,1706.6,1706.5,16.00662042]
[1693438807193,26.3575,1706.6,1706.5,10.14668042]
[1693438809917,26.3575,1706.6,1706.5,9.12813898]
[1693438810133,37.93285065,1706.6,1706.5,3.26819898]
[1693438810350,43.79245065,1706.6,1706.5,3.26819898]
[1693438810645,37.93285065,1706.6,1706.5,3.26819898]
[1693438821886,38.40317108,1706.6,1706.5,3.26819898]
[1693438824881,44.26277108,1706.6,1706.5,3.26819898]
[1693438825054,38.40317108,1706.6,1706.5,3.26819898]
[1693438832979,38.40317108,1706.6,1706.5,3.27029234]
[1693438835286,35.56090108,1706.6,1706.5,3.27029234]
[1693438845122,26.82782043,1706.6,1706.5,3.27029234]
[1693438845493,26.82782043,1706.6,1706.5,9.13023234]
[1693438846251,26.3575,1706.6,1706.5,9.13023234]
[1693438848830,26.3575,1706.6,1706.5,3.27029234]
[1693438854761,26.3575,1706.6,1706.5,4.76933857]
[1693438854966,26.3575,1706.6,1706.5,10.62927857]
[1693438855167,26.3575,1706.6,1706.5,11.64786423]
[1693438856462,26.3575,1706.6,1706.5,23.36774423]
[1693438856630,26.3575,1706.6,1706.5,23.98139807]
[1693438857563,26.3575,1706.6,1706.5,23.36774423]
[1693438860251,26.3575,1706.6,1706.5,23.98139807]
[1693438861280,26.3575,1706.6,1706.5,23.36774423]
[1693438863294,26.3575,1706.6,1706.5,23.98139807]
[1693438870022,26.3575,1706.6,1706.5,24.98439807]
[1693438871290,26.3575,1706.6,1706.5,25.90487883]
[1693438871884,26.3575,1706.6,1706.5,24.98439807]
[1693438876797,26.3575,1706.6,1706.5,23.98139807]
[1693438877010,25.74645102,1706.6,1706.5,24.28822499]
[1693438881012,25.74645102,1706.6,1706.5,25.51553267]
[1693438882732,25.74645102,1706.6,1706.5,24.59505191]
[1693438883950,24.66018962,1706.6,1706.5,24.59505191]
[1693438893858,24.66018962,1706.6,1706.5,26.12918651]
[1693438894760,24.66018962,1706.6,1706.5,24.59505191]
[1693438894959,24.66018962,1706.6,1706.5,26.12918651]
[1693438900769,24.66018962,1706.6,1706.5,24.59505191]
[1693438900944,24.66018962,1706.6,1706.5,26.12918651]
[1693438902871,24.66018962,1706.6,1706.5,24.59505191]
[1693438903061,24.66018962,1706.6,1706.5,26.12918651]
[1693438903375,24.66018962,1706.6,1706.5,24.59505191]
[1693438905873,24.66018962,1706.6,1706.5,24.59177602]
[1693438906073,24.66018962,1706.6,1706.5,24.59505191]
[1693438911091,24.66018962,1706.6,1706.5,26.12918651]
[1693438913788,24.66018962,1706.6,1706.5,24.90187883]
[1693438920137,24.66018962,1706.6,1706.5,24.23695574]
[1693438920520,24.66018962,1706.6,1706.5,24.90282221]
[1693438927939,24.66018962,1706.6,1706.5,7.32300221]
[1693438928242,24.66018962,1706.6,1706.5,24.90282221]
[1693438930221,24.66018962,1706.6,1706.5,24.90397626]
[1693438936962,24.66018962,1706.6,1706.5,26.13173975]
[1693438937166,24.66018962,1706.6,1706.5,24.90397626]
[1693438937329,24.66018962,1706.6,1706.5,22.35010195]
[1693438937666,24.66018962,1706.6,1706.5,24.90316813]
[1693438939558,24.66018962,1706.6,1706.5,26.13089142]
[1693438939769,24.66018962,1706.6,1706.5,24.90316813]
[1693438941564,24.66018962,1706.6,1706.5,26.13086531]
[1693438942072,24.66018962,1706.6,1706.5,24.90316813]
[1693438942368,24.66018962,1706.6,1706.5,26.13086555]
[1693438942746,24.66018962,1706.6,1706.5,24.90316813]
[1693438943533,24.66018962,1706.6,1706.5,26.13083824]
[1693438943938,24.66018962,1706.6,1706.5,24.90316813]
[1693438944338,24.66018962,1706.6,1706.5,26.13084102]
[1693438948485,24.66018962,1706.6,1706.5,24.59616728]
[1693438949187,24.66018962,1706.6,1706.5,26.13084102]
[1693438952716,24.66018962,1706.6,1706.5,24.90316813]
[1693438953009,24.66018962,1706.6,1706.5,26.1307668]
[1693438953212,24.66018962,1706.6,1706.5,24.90316813]
[1693438953510,24.66018962,1706.6,1706.5,26.13076265]
[1693438953806,24.66018962,1706.6,1706.5,24.90316813]
[1693438954199,24.66018962,1706.6,1706.5,26.1307555]
[1693438954598,24.66018962,1706.6,1706.5,24.90316813]
[1693438954913,24.66018962,1706.6,1706.5,26.1307659]
[1693438955510,24.04917245,1706.6,1706.5,24.90316813]
[1693438955879,24.04917245,1706.6,1706.5,24.90266879]
[1693438956212,24.04917245,1706.6,1706.5,23.36849439]
[1693438956581,24.04917245,1706.6,1706.5,24.90256452]
[1693438956781,24.04917245,1706.6,1706.5,23.36849439]
[1693438961629,24.04917245,1706.6,1706.5,24.90203782]
[1693438969842,24.04917245,1706.6,1706.5,24.90151529]
[1693438977041,24.04917245,1706.6,1706.5,25.90451529]
[1693438977247,24.04917245,1706.6,1706.5,26.37447429]
[1693438982932,22.96298836,1706.6,1706.5,30.55757308]
[1693438983131,1.953,1707.2,1706.5,32.30386425]
[1693438983330,1.953,1707.2,1707.0,1.53247225]
[1693438983331,3.8709,1707.2,1707.0,1.53247225]
[1693438983558,3.8709,1707.2,1707.1,11.71576]
[1693438983737,1.9179,1707.2,1707.1,12.73408265]
[1693438983939,1.9179,1707.2,1707.1,12.7394078]
[1693438985431,1.9179,1707.2,1707.1,11.72108515]
[1693438990097,1.9179,1707.2,1707.1,5.86320515]
[1693438991399,2.695415,1707.2,1707.1,5.86320515]
[1693438994783,2.695415,1707.2,1707.1,6.52792647]
[1693438996691,1.9179,1707.2,1707.1,6.52792647]
[1693438999615,1.9179,1707.2,1707.1,12.38580647]
[1693439020722,1.9179,1707.2,1707.1,13.40401318]
[1693439020925,1.9179,1707.2,1707.1,12.38580647]
[1693439021123,1.9179,1707.2,1707.1,13.40401336]
[1693439021314,1.9179,1707.2,1707.1,12.38580647]
[1693439021620,1.9179,1707.2,1707.1,13.40401336]
[1693439026951,5.85686,1707.4,1707.1,13.40401336]
[1693439027116,10.67784065,1707.4,1707.1,12.38580647]
[1693439028844,7.80436,1707.4,1707.1,12.38580647]
[1693439029058,7.80436,1707.4,1707.1,13.8848527]
[1693439029622,7.80436,1707.4,1707.2,1.01820193]
[1693439029843,7.80436,1707.4,1707.2,6.87566193]
[1693439030045,7.80436,1707.4,1707.3,0.00531046]
[1693439030360,7.80436,1707.4,1707.3,0.65027265]
[1693439035064,5.85686,1707.4,1707.3,0.65027265]
[1693439047760,7.36645952,1707.4,1707.3,0.65027265]
[1693439051533,5.85686,1707.4,1707.3,0.65027265]
[1693439057286,11.71389,1707.4,1707.3,0.65027265]
[1693439057484,15.59037065,1707.4,1707.3,0.65027265]
[1693439067557,14.58737065,1707.4,1707.3,0.65027265]
[1693439068149,8.73034065,1707.4,1707.3,0.65027265]
[1693439068560,7.32943518,1707.5,1707.3,0.65027265]
[1693439068721,8.73013065,1707.5,1707.3,0.65027265]
[1693439068927,5.85665,1707.5,1707.3,0.65027265]
[1693439073756,5.85665,1707.5,1707.3,6.50742265]
[1693439091449,5.85665,1707.5,1707.3,0.65027265]
[1693439092677,7.80655,1707.5,1707.3,0.65027265]
[1693439105197,7.80655,1707.5,1707.3,6.50741265]
[1693439105389,8.85586,1707.7,1707.3,13.60108091]
[1693439105595,8.72934065,1707.7,1707.3,19.45828091]
[1693439105756,8.72934065,1707.7,1707.3,21.62878091]
[1693439105956,8.72934065,1707.7,1707.4,2.03441866]
[1693439106157,8.72934065,1707.7,1707.4,8.51687249]
[1693439106979,8.72934065,1707.7,1707.5,0.00529577]
[1693439107380,9.19821817,1707.7,1707.5,0.00529577]
[1693439108594,0.46887752,1707.7,1707.5,5.86178577]
[1693439108898,0.46887752,1707.7,1707.5,7.09825403]
[1693439108899,5.85583,1707.7,1707.5,7.09825403]
[1693439109563,5.85583,1707.7,1707.5,9.69825403]
[1693439110676,13.71808,1707.8,1707.5,9.69825403]
[1693439113697,7.86241,1707.8,1707.5,9.69825403]
[1693439114895,7.86241,1707.8,1707.6,0.62556068]
[1693439115191,8.32487027,1707.8,1707.6,0.62556068]
[1693439115962,8.32487027,1707.8,1707.7,0.00528109]
[1693439116998,8.32487027,1707.8,1707.6,0.62556068]
[1693439117401,8.32487027,1707.8,1707.5,17.74454826]
[1693439117612,8.32487027,1707.8,1707.5,11.88805826]
[1693439120010,8.32487027,1707.8,1707.6,0.00528843]
[1693439129940,8.32487027,1707.8,1707.7,0.62558575]
[1693439130442,8.32487027,1707.8,1707.6,0.00528843]
[1693439137421,5.85531,1707.9,1707.6,7.51277027]
[1693439138555,6.33176064,1707.9,1707.6,7.51277027]
[1693439139977,5.85531,1707.9,1707.6,7.51277027]
[1693439140380,7.82371,1707.9,1707.6,7.51277027]
[1693439143281,13.67901,1707.9,1707.6,7.51277027]
[1693439144980,13.67901,1707.9,1707.7,0.66704059]
[1693439145269,7.8237,1707.9,1707.7,0.66704059]
[1693439145581,7.8237,1707.9,1707.6,13.36876027]
[1693439145871,7.8237,1707.9,1707.8,0.66722008]
[1693439146181,5.8553,1707.9,1707.6,7.51260027]
[1693439146475,5.85381,1708.3,1707.8,17.56644]
[1693439146993,5.85381,1708.3,1707.8,19.68704]
[1693439147175,5.85381,1708.3,1707.9,0.00683669]
[1693439147496,1.9418,1708.2,1708.0,11.7095]
[1693439151095,1.9418,1708.2,1708.1,0.00681319]
[1693439151272,1.9418,1708.2,1708.1,5.86126319]
[1693439156504,1.9418,1708.2,1708.1,6.8789567]
[1693439156704,1.9418,1708.2,1708.1,6.87895719]
[1693439156913,1.9418,1708.2,1708.1,5.86126319]
[1693439157376,1.9418,1708.2,1708.1,6.87895792]
[1693439159711,1.9418,1708.2,1708.1,7.54525905]
[1693439163720,1.9418,1708.2,1708.1,1.69080905]
[1693439164008,2.821672,1708.2,1708.1,0.67311432]
[1693439169745,18.40637265,1708.2,1708.1,0.67311432]
[1693439169909,12.55226265,1708.2,1708.1,0.67311432]
[1693439170237,18.40637265,1708.2,1708.1,0.67311432]
[1693439170935,12.55226265,1708.2,1708.1,0.67311432]
[1693439171145,18.40637265,1708.2,1708.1,0.67311432]
[1693439171302,12.55226265,1708.2,1708.1,0.67311432]
[1693439172742,18.40637265,1708.2,1708.1,0.67311432]
[1693439172913,12.55226265,1708.2,1708.1,0.67311432]
[1693439175449,18.40637265,1708.2,1708.1,0.67311432]
[1693439176147,12.55226265,1708.2,1708.1,0.67311432]
[1693439176615,18.40637265,1708.2,1708.1,0.67311432]
[1693439198886,10.61046265,1708.2,1708.1,0.67311432]
[1693439199185,5.85411,1708.2,1708.1,0.67311432]
[1693439207422,8.72759065,1708.2,1708.1,0.67311432]
[1693439207622,15.58470065,1708.2,1708.1,0.67311432]
[1693439209216,14.58170065,1708.2,1708.1,0.67311432]
[1693439257696,5.95458,1708.4,1708.1,12.38201432]
[1693439257902,5.95458,1708.4,1708.1,6.52756432]
[1693439257903,2.87348065,1708.3,1708.1,6.52756432]
[1693439260289,2.87348065,1708.3,1708.1,12.38201432]
[1693439263570,5.95458,1708.4,1708.1,12.38201432]
[1693439263896,8.82806065,1708.4,1708.1,12.38201432]
[1693439265865,10.75046065,1708.4,1708.1,12.38201432]
[1693439267785,11.75346065,1708.4,1708.1,6.52756432]
[1693439270828,8.87998,1708.4,1708.1,14.66724975]
[1693439270996,7.87698,1708.4,1708.1,14.66724975]
[1693439272775,8.87998,1708.4,1708.1,14.66724975]
[1693439278826,6.95758,1708.4,1708.1,14.66724975]
[1693439279196,8.97378,1708.4,1708.1,14.66724975]
[1693439282034,7.97078,1708.4,1708.1,14.66724975]
[1693439297830,7.97078,1708.4,1708.1,12.38201432]
[1693439302272,7.97078,1708.4,1708.1,6.52756432]
[1693439302273,10.84426065,1708.4,1708.1,6.52756432]
[1693439302456,22.55142065,1708.4,1708.1,0.67311432]
[1693439302657,16.69784065,1708.4,1708.1,0.67311432]
[1693439302858,16.69784065,1708.4,1708.1,6.52753432]
[1693439303063,1.66978407,1708.3,1708.1,0.67311432]
[1693439303267,13.37764407,1708.3,1708.1,0.67311432]
[1693439304780,15.32934407,1708.3,1708.1,0.67311432]
[1693439306273,9.47536407,1708.3,1708.1,0.67311432]
[1693439307179,8.72759065,1708.2,1708.1,0.67311432]
[1693439307347,16.40199612,1708.2,1708.1,0.67311432]
[1693439307549,10.54788612,1708.2,1708.1,0.67311432]
[1693439311076,1.05478861,1708.1,1707.8,0.91738606]
[1693439311363,1.05478861,1708.1,1707.6,1.63072901]
[1693439311364,14.58376065,1707.9,1707.6,1.63072901]
[1693439311562,14.58376065,1707.9,1707.4,1.53279813]
[1693439311563,0.48,1707.8,1707.4,1.53279813]
[1693439311762,11.71302,1707.5,1707.4,1.53279813]
[1693439311955,11.71302,1707.5,1707.2,2.24420044]
[1693439311956,14.58650065,1707.5,1707.3,0.91967888]
[1693439312175,14.58650065,1707.5,1707.4,1.01796193]
[1693439312388,14.58650065,1707.5,1707.2,6.47060925]
[1693439312389,16.94005472,1707.5,1707.2,6.47060925]
[1693439312683,16.94005472,1707.5,1707.3,1.01799659]
[1693439312684,15.58950065,1707.5,1707.3,1.01799659]
[1693439312860,15.58950065,1707.5,1707.2,0.61311925]
[1693439313064,15.58950065,1707.5,1707.2,1.63115373]
[1693439313448,15.58950065,1707.5,1707.1,8.65266925]
[1693439313650,15.58950065,1707.5,1707.2,1.01804137]
[1693439314252,15.58950065,1707.5,1707.1,8.65180385]
[1693439314454,15.58950065,1707.5,1707.2,1.01804798]
[1693439314865,15.58950065,1707.5,1707.1,8.03955]
[1693439315063,15.58950065,1707.5,1707.3,0.00458724]
[1693439315284,17.94305472,1707.5,1707.3,0.00458724]
[1693439318786,17.94305472,1707.5,1707.4,0.63951315]
[1693439319155,17.94305472,1707.5,1707.4,0.64409296]
[1693439321281,17.3322205,1707.5,1707.4,0.64409296]
[1693439321490,17.3322205,1707.5,1707.4,1.66214999]
[1693439321855,16.3292205,1707.5,1707.4,1.66214999]
[1693439324461,16.94005472,1707.5,1707.4,1.66214999]
[1693439326291,16.94005472,1707.5,1707.4,2.27440384]
[1693439326458,16.94005472,1707.5,1707.4,1.66214999]
[1693439326857,16.94005472,1707.5,1707.4,2.27440384]
[1693439331933,5.85651,1707.5,1707.4,2.27440384]
[1693439332220,5.85624,1707.6,1707.4,2.58053077]
[1693439332418,8.72972065,1707.6,1707.5,1.62798496]
[1693439332825,8.72972065,1707.6,1707.5,2.22437481]
[1693439333126,8.72972065,1707.6,1707.5,2.22894718]
[1693439334745,14.58621065,1707.6,1707.5,2.22894718]
[1693439335107,14.58621065,1707.6,1707.5,2.22437481]
[1693439335441,14.58621065,1707.6,1707.5,0.59638985]
[1693439335736,14.58621065,1707.6,1707.5,2.22437622]
[1693439335940,14.58621065,1707.6,1707.5,1.62798637]
[1693439336109,14.58621065,1707.6,1707.5,0.61454887]
[1693439339707,14.58621065,1707.6,1707.5,1.21093872]
[1693439340121,14.58621065,1707.6,1707.5,2.22894859]
[1693439342450,14.58621065,1707.6,1707.5,3.14391334]
[1693439344456,13.50034133,1707.6,1707.5,3.14391334]
[1693439345360,13.50034133,1707.6,1707.5,2.53393684]
[1693439345990,13.50034133,1707.6,1707.5,3.14458664]
[1693439346337,13.50034133,1707.6,1707.5,2.53393684]
[1693439347727,21.33874148,1707.6,1707.5,3.14489569]
[1693439348064,21.33874148,1707.6,1707.5,2.22993094]
[1693439348065,22.34174148,1707.6,1707.5,2.22993094]
[1693439350346,22.34174148,1707.6,1707.5,3.14489569]
[1693439351273,20.35983133,1707.6,1707.5,2.53393684]
[1693439354148,19.35683133,1707.6,1707.5,2.53393684]
[1693439355050,20.35983133,1707.6,1707.5,2.53393684]
[1693439355449,20.35983133,1707.6,1707.5,2.83892509]
[1693439355847,20.35983133,1707.6,1707.5,2.73995812]
[1693439356051,20.35983133,1707.6,1707.5,3.75796799]
[1693439356501,20.35983133,1707.6,1707.5,2.83892509]
[1693439356981,19.35683133,1707.6,1707.5,2.83892509]
[1693439359093,19.35683133,1707.6,1707.5,3.7590449]
[1693439359295,19.35683133,1707.6,1707.5,3.75903298]
[1693439359590,19.35683133,1707.6,1707.5,2.53907998]
[1693439361493,19.35683133,1707.6,1707.5,2.23238784]
[1693439361992,7.64385133,1707.6,1707.5,2.23238784]
[1693439363178,13.50034133,1707.6,1707.5,2.23238784]
[1693439363765,13.50034133,1707.6,1707.5,1.61897209]
[1693439365388,13.50034133,1707.6,1707.5,0.60096222]
[1693439368088,23.02919009,1707.6,1707.5,0.60096222]
[1693439368310,26.02919009,1707.6,1707.5,0.60096222]
[1693439381041,26.50919009,1707.6,1707.5,0.60096222]
[1693439381906,27.37174329,1707.6,1707.5,0.60096222]
[1693439390057,26.78460068,1707.6,1707.5,0.60096222]
[1693439391730,25.92204748,1707.6,1707.5,0.60096222]
[1693439400448,23.83983133,1707.6,1707.5,0.60096222]
[1693439400770,22.83683133,1707.6,1707.5,0.60096222]
[1693439402981,19.83683133,1707.6,1707.5,0.60096222]
[1693439406477,8.72997065,1707.6,1707.5,0.60096222]
[1693439407083,14.58614065,1707.6,1707.5,0.60096222]
[1693439408271,20.44263065,1707.6,1707.5,0.60096222]
[1693439416393,21.44563065,1707.6,1707.5,0.60096222]
[1693439416597,23.59019371,1707.6,1707.5,0.60096222]
[1693439416885,24.17733632,1707.6,1707.5,0.60096222]